fUST/lending_fUST_20240215
["ID","MTS","AMOUNT","RATE_DAILY","PERIOD"]
[314104302,1707982243623,-500.0,0.0003589,7]
[314104303,1707982243633,-500.0,0.0003589,14]
[314104305,1707982243642,-607.78,0.0003589,14]
[314104307,1707982243653,-151.0,0.0003589,2]
[314104309,1707982243662,-500.0,0.0003589,14]
[314104311,1707982243672,-500.0,0.0003589,14]
[314104313,1707982243681,-500.0,0.0003589,14]
[314104315,1707982243690,-558.56,0.0003589,14]
[314104317,1707982243700,-500.0,0.0003589,14]
[314104319,1707982243709,-505.92032501,0.0003589,2]
[314104321,1707982243719,-415.41415769,0.0003589,14]
[314104323,1707982243729,-500.0,0.0003589,14]
[314104325,1707982243741,-500.0,0.0003589,14]
[314104327,1707982243751,-500.0,0.0003589,14]
[314104329,1707982243760,-726.79,0.0003589,14]
[314104331,1707982243770,-577.04757293,0.0003589,14]
[314104332,1707982243780,-511.96,0.0003589,14]
[314104334,1707982243790,-500.0,0.0003589,14]
[314104336,1707982243799,-500.0,0.0003589,14]
[314104338,1707982243808,-500.0,0.0003589,14]
[314104340,1707982243819,-246.76428622,0.0003589,14]
[314104342,1707982243829,-500.0,0.0003589,14]
[314104344,1707982243838,-336.43783872,0.0003589,14]
[314104346,1707982243847,-500.0,0.0003589,14]
[314104348,1707982243856,-2371.77,0.0003589,14]
[314104350,1707982243864,-151.0,0.0003589,2]
[314104352,1707982243873,-15414.59,0.0003589,14]
[314104354,1707982243882,-500.0,0.0003589,14]
[314104356,1707982243891,-1220.8,0.0003589,14]
[314104358,1707982243900,-683.35,0.0003589,14]
[314104359,1707982243909,-1376.46,0.0003589,14]
[314104361,1707982243918,-2170.15,0.0003589,14]
[314104364,1707982243928,-14758.37,0.0003589,14]
[314104366,1707982243938,-500.0,0.0003589,14]
[314104368,1707982243947,-4881.8,0.0003589,14]
[314104370,1707982243956,-925.91,0.0003589,14]
[314104372,1707982243964,-500.0,0.0003589,14]
[314104374,1707982243973,-151.0,0.0003589,2]
[314104376,1707982243982,-1436.48,0.0003589,14]
[314104378,1707982243991,-151.0,0.0003589,2]
[314104379,1707982244000,-511.2,0.0003589,14]
[314104381,1707982244010,-2091.26,0.0003589,14]
[314104383,1707982244019,-500.0,0.0003589,14]
[314104385,1707982244028,-1680.76,0.0003589,14]
[314104387,1707982244037,-14793.34,0.0003589,14]
[314104389,1707982244046,-500.0,0.0003589,14]
[314104391,1707982244055,-151.0,0.0003589,2]
[314104394,1707982244064,-500.0,0.0003589,14]
[314104396,1707982244074,-804.88,0.0003589,14]
[314104397,1707982244083,-172.014513,0.0003589,2]
[314104399,1707982244093,-172.014513,0.0003589,2]
[314104402,1707982244102,-500.0,0.0003589,14]
[314104404,1707982244111,-500.0,0.0003589,14]
[314104406,1707982244121,-1372.46,0.0003589,14]
[314104407,1707982244130,-500.0,0.0003589,14]
[314104410,1707982244140,-500.0,0.0003589,14]
[314104412,1707982244149,-8131.47,0.0003589,14]
[314104414,1707982244158,-2453.96,0.0003589,14]
[314104416,1707982244167,-500.0,0.0003589,14]
[314104417,1707982244176,-5114.39190441,0.0003589,14]
[314104422,1707982244210,-1326.1537254,0.00034888,3]
[314104433,1707982244309,-1592.0062746,0.00034888,3]
[314104434,1707982244318,-4306.94547282,0.0003589,14]
[314104435,1707982244332,-5391.72262277,0.0003589,14]
[314104436,1707982244341,-7679.29,0.0003589,14]
[314104437,1707982244351,-3246.78,0.0003589,14]
[314104438,1707982244360,-484.9901628,0.0003589,14]
[314104439,1707982244370,-15.0098372,0.0003589,14]
[314104440,1707982244378,-16182.6617128,0.0003589,14]
[314104462,1707982245965,-317.30560174,0.00035616,2]
[314104480,1707982565156,251.0,0.000211,120]
[314104544,1707983434540,-631.11904014,0.00031864,2]
[314104546,1707983434550,-196.0,0.00032603,2]
[314104548,1707983434559,-7599.16295552,0.00032603,5]
[314104908,1707983438153,-2115.16036011,0.00032603,5]
[314104915,1707983438210,-25413.62610219,0.00032603,5]
[314104917,1707983438219,-10086.49051584,0.00032603,5]
[314104920,1707983438228,-1805.95,0.00033001,3]
[314104923,1707983438237,-3443.82,0.00033001,3]
[314104925,1707983438246,-2869.85,0.00033001,3]
[314104927,1707983438255,-24900.0,0.00033011,2]
[314104929,1707983438264,-620.55595201,0.00033457,2]
[314104931,1707983438273,-411.14711612,0.0003379,2]
[314104933,1707983438282,-155.0,0.00034616,2]
[314104935,1707983438290,-166.986018,0.0003491,2]
[314104937,1707983438299,-211.839866,0.0003491,2]
[314104939,1707983438308,-152.034734,0.0003491,2]
[314104941,1707983438317,-1000.0,0.00035,35]
[314104943,1707983438326,-897.61570462,0.00035,2]
[314104945,1707983438335,-4020.83839239,0.00035,4]
[314104947,1707983438344,-5000.0,0.00035144,7]
[314104949,1707983438352,-161.74103775,0.00035516,2]
[314104951,1707983438361,-793.95868717,0.000356,15]
[314104953,1707983438370,-238.04107446,0.00035615,15]
[314104955,1707983438379,-500.0,0.00035615,15]
[314104957,1707983438388,-500.0,0.00035615,15]
[314104959,1707983438397,-294.00368041,0.00035615,15]
[314104961,1707983438406,-500.0,0.00035615,15]
[314104963,1707983438414,-500.0,0.00035615,15]
[314104965,1707983438423,-500.0,0.00035615,15]
[314104967,1707983438433,-383.96267771,0.00035615,15]
[314104969,1707983438441,-250.0,0.00035615,2]
[314104971,1707983438450,-500.0,0.00035616,7]
[314104973,1707983438459,-500.0,0.00035616,14]
[314104976,1707983438469,-500.0,0.00035616,7]
[314104978,1707983438478,-500.0,0.00035616,14]
[314104980,1707983438486,-500.0,0.00035616,14]
[314104982,1707983438495,-500.0,0.00035616,14]
[314104983,1707983438505,-401.6398544,0.00035616,14]
[314104986,1707983438514,-500.0,0.00035616,14]
[314104987,1707983438522,-500.0,0.00035616,14]
[314104989,1707983438532,-512.21825011,0.00035616,14]
[314104991,1707983438540,-500.0,0.00035616,14]
[314104993,1707983438549,-500.0,0.00035616,14]
[314104995,1707983438558,-500.0,0.00035616,14]
[314104997,1707983438566,-500.0,0.00035616,14]
[314104999,1707983438575,-504.24519245,0.00035616,14]
[314105001,1707983438584,-315.01598404,0.00035616,14]
[314105003,1707983438594,-503.4400308,0.00035616,14]
[314105005,1707983438603,-500.0,0.00035616,14]
[314105007,1707983438613,-528.03076737,0.00035616,14]
[314105009,1707983438622,-500.0,0.00035616,14]
[314105011,1707983438630,-544.11636985,0.00035616,14]
[314105013,1707983438639,-510.79586648,0.00035616,14]
[314105015,1707983438649,-500.0,0.00035616,2]
[314105017,1707983438659,-500.0,0.00035616,14]
[314105019,1707983438668,-500.0,0.00035616,14]
[314105021,1707983438677,-500.0,0.00035616,14]
[314105023,1707983438686,-220.0,0.00035616,2]
[314105025,1707983438695,-500.0,0.00035616,14]
[314105027,1707983438707,-574.18027158,0.00035616,14]
[314105029,1707983438715,-500.0,0.00035616,7]
[314105031,1707983438726,-506.21858276,0.00035616,14]
[314105033,1707983438735,-564.36544628,0.00035616,14]
[314105035,1707983438745,-500.0,0.00035616,2]
[314105037,1707983438754,-503.20204968,0.00035616,14]
[314105039,1707983438763,-500.0,0.00035616,14]
[314105041,1707983438773,-500.0,0.00035616,14]
[314105043,1707983438782,-500.0,0.00035616,14]
[314105045,1707983438792,-500.0,0.00035616,14]
[314105047,1707983438801,-500.0,0.00035616,14]
[314105049,1707983438810,-500.0,0.00035616,14]
[314105051,1707983438820,-500.0,0.00035616,7]
[314105053,1707983438829,-178.61972058,0.00035616,14]
[314105055,1707983438838,-500.0,0.00035616,14]
[314105057,1707983438847,-500.0,0.00035616,14]
[314105059,1707983438856,-500.0,0.00035616,14]
[314105061,1707983438865,-500.0,0.00035616,14]
[314105063,1707983438874,-500.0,0.00035616,14]
[314105065,1707983438883,-500.0,0.00035616,14]
[314105067,1707983438892,-198.13534654,0.00035616,14]
[314105069,1707983438901,-500.0,0.00035616,14]
[314105071,1707983438910,-500.0,0.00035616,14]
[314105073,1707983438919,-500.0,0.00035616,14]
[314105075,1707983438928,-500.0,0.00035616,14]
[314105077,1707983438938,-403.79557639,0.00035616,14]
[314105079,1707983438948,-500.0,0.00035616,14]
[314105082,1707983438957,-1966.41,0.00035616,7]
[314105084,1707983438966,-500.0,0.00035616,14]
[314105086,1707983438975,-285.50953037,0.00035616,14]
[314105088,1707983438984,-517.39206153,0.00035616,14]
[314105090,1707983438994,-500.0,0.00035616,14]
[314105091,1707983439003,-510.46755575,0.00035616,14]
[314105093,1707983439012,-500.0,0.00035616,14]
[314105096,1707983439022,-500.0,0.00035616,14]
[314105098,1707983439031,-500.0,0.00035616,14]
[314105100,1707983439040,-500.0,0.00035616,14]
[314105101,1707983439049,-500.0,0.00035616,14]
[314105103,1707983439058,-500.0,0.00035616,14]
[314105105,1707983439067,-500.0,0.00035616,14]
[314105107,1707983439076,-500.0,0.00035616,14]
[314105109,1707983439085,-500.0,0.00035616,14]
[314105111,1707983439096,-195.99445327,0.00035616,14]
[314105113,1707983439105,-500.0,0.00035616,14]
[314105115,1707983439114,-520.94030356,0.00035616,14]
[314105117,1707983439123,-500.0,0.00035616,2]
[314105119,1707983439132,-500.0,0.00035616,14]
[314105121,1707983439142,-578.55450017,0.00035616,14]
[314105123,1707983439152,-500.0,0.00035616,14]
[314105125,1707983439160,-500.0,0.00035616,14]
[314105127,1707983439170,-500.0,0.00035616,14]
[314105129,1707983439180,-500.0,0.00035616,14]
[314105131,1707983439190,-184.23353177,0.00035616,14]
[314105133,1707983439200,-514.93351127,0.00035616,14]
[314105135,1707983439208,-511.2,0.00035616,14]
[314105137,1707983439217,-500.0,0.00035616,14]
[314105139,1707983439226,-500.0,0.00035616,2]
[314105141,1707983439236,-500.0,0.00035616,14]
[314105143,1707983439245,-543.30693965,0.00035616,14]
[314105145,1707983439254,-500.0,0.00035616,14]
[314105147,1707983439263,-241.4578223,0.00035616,14]
[314105149,1707983439273,-644.72,0.00035616,14]
[314105151,1707983439282,-516.94149683,0.00035616,14]
[314105153,1707983439292,-500.0,0.00035616,14]
[314105155,1707983439302,-156.84959731,0.00035616,14]
[314105157,1707983439311,-500.0,0.00035616,14]
[314105159,1707983439320,-500.0,0.00035616,14]
[314105161,1707983439330,-500.0,0.00035616,14]
[314105163,1707983439339,-500.0,0.00035616,14]
[314105165,1707983439348,-506.91722832,0.00035616,14]
[314105167,1707983439357,-541.69581236,0.00035616,14]
[314105169,1707983439366,-1017.96,0.00035616,14]
[314105171,1707983439375,-607.78,0.00035616,14]
[314105173,1707983439385,-501.74485484,0.00035616,14]
[314105175,1707983439394,-500.0,0.00035616,14]
[314105177,1707983439403,-500.0,0.00035616,14]
[314105179,1707983439413,-558.56,0.00035616,14]
[314105181,1707983439423,-500.0,0.00035616,14]
[314105183,1707983439433,-557.04962915,0.00035616,14]
[314105185,1707983439443,-506.57653874,0.00035616,14]
[314105187,1707983439452,-500.0,0.00035616,2]
[314105189,1707983439462,-500.0,0.00035616,14]
[314105191,1707983439471,-500.0,0.00035616,14]
[314105193,1707983439481,-500.0,0.00035616,14]
[314105195,1707983439491,-726.79,0.00035616,14]
[314105197,1707983439501,-495.88183261,0.00035616,14]
[314105199,1707983439511,-401.84311323,0.00035616,14]
[314105201,1707983439520,-500.0,0.00035616,14]
[314105203,1707983439530,-511.96,0.00035616,14]
[314105205,1707983439539,-266.15669203,0.00035616,14]
[314105207,1707983439548,-500.0,0.00035616,14]
[314105209,1707983439558,-500.0,0.00035616,14]
[314105211,1707983439567,-500.0,0.00035616,14]
[314105213,1707983439576,-500.0,0.00035616,14]
[314105215,1707983439585,-500.0,0.00035616,14]
[314105217,1707983439594,-500.0,0.00035616,14]
[314105220,1707983439604,-500.0,0.00035616,2]
[314105221,1707983439614,-500.0,0.00035616,14]
[314105223,1707983439623,-500.0,0.00035616,14]
[314105225,1707983439632,-786.92,0.00035616,14]
[314105228,1707983439642,-489.82980321,0.00035616,14]
[314105230,1707983439651,-343.63079016,0.00035616,14]
[314105239,1707983439660,-212.18676146,0.00035616,14]
[314105241,1707983439740,-500.0,0.00035616,14]
[314105243,1707983439749,-513.66558092,0.00035616,14]
[314105245,1707983439758,-500.0,0.00035616,14]
[314105247,1707983439767,-2392.6,0.00035616,14]
[314105249,1707983439776,-500.0,0.00035616,14]
[314105251,1707983439785,-500.0,0.00035616,14]
[314105253,1707983439795,-1220.8,0.00035616,14]
[314105255,1707983439804,-583.6952767,0.00035616,14]
[314105257,1707983439813,-500.0,0.00035616,14]
[314105259,1707983439822,-500.0,0.00035616,14]
[314105261,1707983439831,-500.0,0.00035616,14]
[314105263,1707983439840,-500.0,0.00035616,14]
[314105265,1707983439849,-500.0,0.00035616,14]
[314105267,1707983439859,-500.0,0.00035616,14]
[314105269,1707983439868,-2170.15,0.00035616,14]
[314105270,1707983439877,-500.0,0.00035616,14]
[314105272,1707983439886,-500.0,0.00035616,14]
[314105274,1707983439895,-15414.59,0.00035616,14]
[314105276,1707983439904,-500.0,0.00035616,14]
[314105278,1707983439913,-925.91,0.00035616,14]
[314105280,1707983439922,-442.04517344,0.00035616,14]
[314105283,1707983439934,-500.0,0.00035616,14]
[314105284,1707983439943,-500.0,0.00035616,14]
[314105286,1707983439952,-1376.46,0.00035616,14]
[314105288,1707983439962,-683.35,0.00035616,14]
[314105290,1707983439972,-500.0,0.00035616,14]
[314105292,1707983439982,-2091.26,0.00035616,14]
[314105294,1707983439993,-1000.0,0.00035616,2]
[314105296,1707983440002,-500.0,0.00035616,14]
[314105299,1707983440012,-14758.37,0.00035616,14]
[314105300,1707983440025,-500.0,0.00035616,14]
[314105302,1707983440034,-4881.8,0.00035616,14]
[314105304,1707983440044,-500.0,0.00035616,14]
[314105306,1707983440053,-537.0742866,0.00035616,14]
[314105308,1707983440063,-375.44487099,0.00035616,14]
[314105310,1707983440072,-1436.48,0.00035616,14]
[314105312,1707983440081,-500.0,0.00035616,14]
[314105315,1707983440092,-14804.54,0.00035616,14]
[314105317,1707983440104,-500.0,0.00035616,14]
[314105319,1707983440113,-542.81677724,0.00035616,14]
[314105321,1707983440122,-1680.76,0.00035616,14]
[314105323,1707983440132,-804.88,0.00035616,14]
[314105325,1707983440141,-825.09,0.00035616,14]
[314105327,1707983440150,-1372.46,0.00035616,14]
[314105329,1707983440159,-500.0,0.00035616,14]
[314105331,1707983440168,-500.0,0.00035616,14]
[314105333,1707983440178,-500.0,0.00035616,14]
[314105335,1707983440191,-500.0,0.00035616,14]
[314105337,1707983440199,-500.0,0.00035616,14]
[314105339,1707983440208,-505.73434112,0.00035616,14]
[314105341,1707983440218,-507.8299765,0.00035616,14]
[314105342,1707983440227,-8131.47,0.00035616,14]
[314105346,1707983440238,-500.0,0.00035616,14]
[314105347,1707983440247,-7359.32,0.00035616,14]
[314105350,1707983440256,-500.0,0.00035616,14]
[314105352,1707983440266,-500.0,0.00035616,14]
[314105354,1707983440275,-500.0,0.00035616,14]
[314105355,1707983440284,-500.0,0.00035616,14]
[314105357,1707983440294,-500.0,0.00035616,14]
[314105359,1707983440303,-14433.04,0.00035616,14]
[314105361,1707983440313,-3111.49,0.00035616,14]
[314105363,1707983440322,-500.0,0.00035616,14]
[314105365,1707983440332,-311.37712662,0.00035616,14]
[314105366,1707983440341,-25571.29,0.00035616,14]
[314105367,1707983440350,-500.0,0.00035616,14]
[314105368,1707983440359,-2453.96,0.00035616,14]
[314105369,1707983440368,-1172.51,0.00035616,14]
[314105370,1707983440377,-2135.78,0.00035616,14]
[314105371,1707983440385,-648.82,0.00035616,14]
[314105372,1707983440394,-500.0,0.00035616,14]
[314105373,1707983440403,-500.0,0.00035616,14]
[314105374,1707983440412,-994.01,0.00035616,14]
[314105375,1707983440420,-500.0,0.00035616,14]
[314105376,1707983440429,-500.0,0.00035616,14]
[314105377,1707983440441,-500.0,0.00035616,14]
[314105379,1707983440450,-216.5790776,0.00035616,2]
[314105381,1707983440459,-161.74103775,0.00035638,2]
[314105383,1707983440468,-2685.07989918,0.00035682,2]
[314105385,1707983440477,-500.0,0.00035699,14]
[314105387,1707983440486,-18132.56438586,0.000357,2]
[314105388,1707983440496,-500.0,0.00035751,14]
[314105390,1707983440506,-500.0,0.00035751,14]
[314105393,1707983440516,-500.0,0.00035751,14]
[314105395,1707983440525,-500.0,0.00035751,14]
[314105397,1707983440535,-536.17297969,0.00035752,14]
[314105399,1707983440545,-500.0,0.00035752,14]
[314105401,1707983440554,-500.0,0.00035753,7]
[314105402,1707983440563,-500.0,0.00035753,14]
[314105405,1707983440572,-500.0,0.00035753,7]
[314105407,1707983440582,-500.0,0.00035753,14]
[314105408,1707983440591,-500.0,0.00035753,14]
[314105410,1707983440600,-500.0,0.00035753,14]
[314105412,1707983440610,-500.0,0.00035753,14]
[314105415,1707983440619,-500.0,0.00035753,14]
[314105417,1707983440629,-500.0,0.00035753,14]
[314105419,1707983440639,-500.0,0.00035753,14]
[314105420,1707983440648,-500.0,0.00035753,2]
[314105422,1707983440657,-500.0,0.00035753,14]
[314105423,1707983440666,-648.0,0.00035753,14]
[314105425,1707983440675,-499.89077347,0.00035753,14]
[314105427,1707983440685,-220.0,0.00035753,2]
[314105429,1707983440694,-500.0,0.00035753,14]
[314105431,1707983440703,-500.0,0.00035753,7]
[314105433,1707983440712,-500.0,0.00035753,14]
[314105435,1707983440721,-500.0,0.00035753,14]
[314105437,1707983440730,-500.0,0.00035753,14]
[314105439,1707983440739,-500.0,0.00035753,14]
[314105440,1707983440748,-500.0,0.00035753,14]
[314105442,1707983440759,-502.57460696,0.00035753,7]
[314105444,1707983440769,-500.0,0.00035753,14]
[314105446,1707983440778,-500.0,0.00035753,14]
[314105448,1707983440787,-500.0,0.00035753,14]
[314105450,1707983440797,-1966.41,0.00035753,7]
[314105452,1707983440806,-500.0,0.00035753,14]
[314105454,1707983440816,-500.0,0.00035753,14]
[314105456,1707983440824,-500.0,0.00035753,14]
[314105458,1707983440834,-500.0,0.00035753,14]
[314105460,1707983440842,-500.0,0.00035753,14]
[314105462,1707983440851,-574.41874669,0.00035753,14]
[314105464,1707983440860,-595.82440495,0.00035753,14]
[314105466,1707983440869,-500.0,0.00035753,14]
[314105468,1707983440878,-500.0,0.00035753,14]
[314105470,1707983440888,-569.62856393,0.00035753,14]
[314105472,1707983440897,-632.37272132,0.00035753,14]
[314105473,1707983440906,-170.56767808,0.00035753,2]
[314105475,1707983440915,-340.40376875,0.00035753,14]
[314105477,1707983440924,-505.07339131,0.00035753,14]
[314105479,1707983440935,-500.0,0.00035753,14]
[314105481,1707983440944,-500.0,0.00035753,14]
[314105483,1707983440953,-500.0,0.00035753,14]
[314105485,1707983440963,-511.2,0.00035753,14]
[314105487,1707983440972,-547.99777768,0.00035753,14]
[314105489,1707983440981,-518.53236624,0.00035753,2]
[314105491,1707983440990,-500.92600228,0.00035753,14]
[314105493,1707983440999,-500.0,0.00035753,14]
[314105495,1707983441008,-644.72,0.00035753,14]
[314105497,1707983441017,-500.0,0.00035753,14]
[314105499,1707983441026,-500.0,0.00035753,14]
[314105501,1707983441035,-500.0,0.00035753,14]
[314105503,1707983441044,-500.0,0.00035753,14]
[314105505,1707983441053,-509.53419309,0.00035753,14]
[314105507,1707983441063,-1017.96,0.00035753,14]
[314105509,1707983441072,-607.78,0.00035753,14]
[314105511,1707983441081,-500.0,0.00035753,14]
[314105513,1707983441090,-500.0,0.00035753,14]
[314105515,1707983441102,-558.56,0.00035753,14]
[314105517,1707983441112,-500.0,0.00035753,14]
[314105519,1707983441121,-500.0,0.00035753,2]
[314105521,1707983441131,-500.0,0.00035753,14]
[314105523,1707983441141,-500.0,0.00035753,14]
[314105525,1707983441151,-500.0,0.00035753,14]
[314105527,1707983441160,-726.79,0.00035753,14]
[314105529,1707983441171,-500.0,0.00035753,14]
[314105531,1707983441182,-511.96,0.00035753,14]
[314105533,1707983441195,-500.0,0.00035753,14]
[314105535,1707983441205,-500.0,0.00035753,14]
[314105537,1707983441215,-500.0,0.00035753,14]
[314105539,1707983441224,-500.0,0.00035753,14]
[314105541,1707983441234,-529.90121524,0.00035753,14]
[314105543,1707983441243,-500.0,0.00035753,14]
[314105545,1707983441252,-500.0,0.00035753,2]
[314105547,1707983441262,-500.0,0.00035753,14]
[314105549,1707983441272,-786.92,0.00035753,14]
[314105551,1707983441281,-500.0,0.00035753,14]
[314105553,1707983441291,-500.0,0.00035753,14]
[314105555,1707983441300,-2392.6,0.00035753,14]
[314105557,1707983441310,-508.26930953,0.00035753,14]
[314105566,1707983441385,-500.0,0.00035753,14]
[314105568,1707983441395,-1220.8,0.00035753,14]
[314105570,1707983441404,-575.26411866,0.00035753,14]
[314105572,1707983441413,-500.0,0.00035753,14]
[314105574,1707983441422,-500.0,0.00035753,14]
[314105576,1707983441432,-500.0,0.00035753,14]
[314105578,1707983441444,-500.0,0.00035753,14]
[314105580,1707983441453,-500.0,0.00035753,14]
[314105582,1707983441462,-2170.15,0.00035753,14]
[314105584,1707983441471,-500.0,0.00035753,14]
[314105586,1707983441481,-500.0,0.00035753,14]
[314105588,1707983441490,-15414.59,0.00035753,14]
[314105590,1707983441498,-502.53956151,0.00035753,14]
[314105592,1707983441507,-925.91,0.00035753,14]
[314105594,1707983441516,-500.0,0.00035753,14]
[314105596,1707983441526,-500.0,0.00035753,14]
[314105598,1707983441534,-1376.46,0.00035753,14]
[314105600,1707983441543,-683.35,0.00035753,14]
[314105602,1707983441553,-500.0,0.00035753,14]
[314105604,1707983441562,-2091.26,0.00035753,14]
[314105606,1707983441571,-1005.42571822,0.00035753,2]
[314105608,1707983441581,-500.0,0.00035753,14]
[314105610,1707983441590,-14758.37,0.00035753,14]
[314105612,1707983441599,-500.0,0.00035753,14]
[314105614,1707983441611,-4881.8,0.00035753,14]
[314105616,1707983441620,-500.0,0.00035753,14]
[314105618,1707983441629,-1436.48,0.00035753,14]
[314105620,1707983441638,-14804.54,0.00035753,14]
[314105621,1707983441647,-500.0,0.00035753,14]
[314105622,1707983441656,-500.0,0.00035753,14]
[314105623,1707983441665,-1680.76,0.00035753,14]
[314105624,1707983441674,-804.88,0.00035753,14]
[314105625,1707983441685,-825.09,0.00035753,14]
[314105626,1707983441694,-1372.46,0.00035753,14]
[314105627,1707983441703,-8131.47,0.00035753,14]
[314105628,1707983441712,-7359.32,0.00035753,14]
[314105629,1707983441721,-220.52929558,0.00035753,14]
[314105630,1707983441730,-500.0,0.00035753,14]
[314105631,1707983441739,-14433.04,0.00035753,14]
[314105632,1707983441748,-3111.49,0.00035753,14]
[314105633,1707983441757,-500.0,0.00035753,14]
[314105634,1707983441766,-25571.29,0.00035753,14]
[314105635,1707983441775,-500.0,0.00035753,14]
[314105636,1707983441784,-2453.96,0.00035753,14]
[314105637,1707983441793,-1172.51,0.00035753,14]
[314105638,1707983441802,-2135.78,0.00035753,14]
[314105640,1707983441811,-648.82,0.00035753,14]
[314105642,1707983441820,-500.0,0.00035753,14]
[314105643,1707983441829,-500.0,0.00035753,14]
[314105644,1707983441838,-994.01,0.00035753,14]
[314105645,1707983441847,-500.0,0.00035753,14]
[314105647,1707983441857,-500.0,0.00035753,14]
[314105649,1707983441867,-500.0,0.00035753,14]
[314105651,1707983441877,-161.74103775,0.0003576,2]
[314105653,1707983441886,-500.0,0.00035762,14]
[314105655,1707983441895,-500.0,0.00035762,14]
[314105657,1707983441904,-500.0,0.00035762,14]
[314105659,1707983441913,-500.0,0.00035762,14]
[314105660,1707983441922,-151665.93638602,0.00035763,2]
[314105663,1707983441941,-124334.06361398,0.00035763,2]
[314105665,1707983441951,-152.034734,0.00035782,2]
[314105667,1707983441960,-359.12892427,0.0003579,7]
[314105669,1707983441969,-359.12892427,0.0003579,7]
[314105671,1707983441978,-359.12892427,0.0003579,7]
[314105673,1707983441987,-359.12892427,0.0003579,7]
[314105675,1707983441996,-359.12892427,0.0003579,7]
[314105677,1707983442005,-359.12892427,0.0003579,7]
[314105679,1707983442014,-359.12892427,0.0003579,7]
[314105681,1707983442022,-359.12892427,0.0003579,7]
[314105683,1707983442031,-359.12892427,0.0003579,7]
[314105685,1707983442040,-359.12892427,0.0003579,7]
[314105687,1707983442049,-359.12892427,0.0003579,7]
[314105689,1707983442058,-359.12892427,0.0003579,7]
[314105691,1707983442067,-359.12892427,0.0003579,7]
[314105693,1707983442075,-359.12892427,0.0003579,7]
[314105695,1707983442085,-359.12892427,0.0003579,7]
[314105698,1707983442101,-359.12892427,0.0003579,7]
[314105700,1707983442115,-359.12892427,0.0003579,7]
[314105703,1707983442130,-359.12892427,0.0003579,7]
[314105705,1707983442142,-359.12892427,0.0003579,7]
[314105707,1707983442154,-359.12,0.0003579,7]
[314105710,1707983442167,-1436.51569709,0.0003579,7]
[314105712,1707983442181,-1436.51569709,0.0003579,7]
[314105715,1707983442196,-1436.51569709,0.0003579,7]
[314105717,1707983442209,-1436.51569709,0.0003579,7]
[314105720,1707983442222,-1436.51569709,0.0003579,7]
[314105722,1707983442233,-1436.51569709,0.0003579,7]
[314105724,1707983442246,-1436.51569709,0.0003579,7]
[314105727,1707983442260,-1436.51569709,0.0003579,7]
[314105729,1707983442274,-1436.51569709,0.0003579,7]
[314105731,1707983442285,-1436.51569709,0.0003579,7]
[314105734,1707983442298,-1436.51569709,0.0003579,7]
[314105736,1707983442311,-1436.51569709,0.0003579,7]
[314105739,1707983442323,-1436.51569709,0.0003579,7]
[314105741,1707983442334,-155.10393497,0.0003579,7]
[314105743,1707983442348,-152.25,0.0003579,7]
[314105746,1707983442360,-152.25784803,0.0003579,7]
[314105748,1707983442373,-152.25784803,0.0003579,7]
[314105750,1707983442384,-249.19,0.0003579,7]
[314105753,1707983442397,-166.13318007,0.0003579,7]